[Event "European Women Rapid-ch 2023"]
[Site "Monaco"]
[Date "2024.01.13"]
[Round "5.10"]
[White "Zimina, Olga"]
[Black "Krasteva, Beloslava"]
[Result "0-1"]
[ECO "D02"]
[WhiteElo "2291"]
[BlackElo "2251"]
[Annotator "ChessBase"]
[PlyCount "106"]
[EventDate "2023.12.19"]
[EventType "swiss"]
[EventCountry "MNC"]
[SourceTitle "playchess.com"]
[Source "ChessBase"]
[SourceQuality "1"]
[TimeControl "900+10"]

1. d4 {[%emt 0:00:02]} Nf6 {[%emt 0:00:02]} 2. Nf3 {[%emt 0:00:02]} e6 {[%emt 0:00:02]} 3. g3 {[%emt 0:00:02]} d5 {[%emt 0:00:13]} 4. Bg2 {[%emt 0:00:01]} h6 {[%emt 0:00:21]} 5. O-O {[%emt 0:00:03]} Bd6 {[%emt 0:00:02]} 6. c4 {[%emt 0:00:10]} O-O {[%emt 0:00:06]} 7. Qc2 {[%emt 0:00:34]} b6 {[%emt 0:00:26]} 8. cxd5 {[%emt 0:00:26]} exd5 {[%emt 0:00:09]} 9. Nc3 {[%emt 0:00:08]} Bb7 {[%emt 0:01:03]} 10. Nh4 {[%emt 0:00:13]} Re8 {[%emt 0:00:24]} 11. Nf5 {[%emt 0:00:22]} Bf8 {[%emt 0:00:14]} 12. Bf4 {[%emt 0:00:17]} Na6 {[%emt 0:00:46]} 13. Rfd1 {[%emt 0:01:05]} c6 {[%emt 0:01:49]} 14. Rac1 {[%emt 0:00:23]} Rc8 {[%emt 0:00:27]} 15. h3 {[%emt 0:02:18]} Nc7 {[%emt 0:01:20]} 16. Be5 {[%emt 0:00:45]} Ne6 {[%emt 0:02:04]} 17. Qa4 {[%emt 0:01:26]} a5 {[%emt 0:00:26]} 18. Qb3 {[%emt 0:00:31]} b5 {[%emt 0:01:10]} 19. a3 {[%emt 0:00:34]} g6 {[%emt 0:00:27]} 20. Nh4 {[%emt 0:00:44]} Nd7 {[%emt 0:00:15]} 21. Nf3 {[%emt 0:00:28]} Nxe5 {[%emt 0:01:37]} 22. Nxe5 {[%emt 0:00:10]} Nxd4 {[%emt 0:00:21]} 23. Rxd4 {[%emt 0:00:06]} Rxe5 {[%emt 0:00:01]} 24. e4 {[%emt 0:00:19]} Qb6 {[%emt 0:00:28]} 25. Rd2 {[%emt 0:00:45]} d4 {[%emt 0:00:21]} 26. Ne2 {[%emt 0:00:32]} c5 {[%emt 0:00:15]} 27. Qd1 {[%emt 0:01:04]} Bxe4 {[%emt 0:01:25]} 28. Bxe4 {[%emt 0:00:14]} Rxe4 {[%emt 0:00:02]} 29. Nxd4 {[%emt 0:00:16]} Rce8 {[%emt 0:00:31]} 30. Nf3 {[%emt 0:00:02]} c4 {[%emt 0:00:14]} 31. a4 {[%emt 0:00:17]} Bb4 {[%emt 0:00:58]} 32. Rdc2 {[%emt 0:00:43]} Qf6 {[%emt 0:01:37]} 33. axb5 {[%emt 0:00:33]} Rd8 {[%emt 0:00:06]} 34. Nd2 {[%emt 0:00:24]} Re6 {[%emt 0:00:49]} 35. Kg2 {[%emt 0:02:05]} Qg5 {[%emt 0:00:10]} 36. h4 {[%emt 0:01:27]} Qxb5 {[%emt 0:00:09]} 37. h5 {[%emt 0:00:41]} Qd5+ {[%emt 0:00:13]} 38. Qf3 {[%emt 0:00:19]} Bxd2 {[%emt 0:00:05]} 39. Qxd5 {[%emt 0:00:03]} Rxd5 {[%emt 0:00:02]} 40. Rd1 {[%emt 0:00:02]} Red6 {[%emt 0:00:03]} 41. hxg6 {[%emt 0:00:02]} fxg6 {[%emt 0:00:01]} 42. Rxc4 {[%emt 0:00:03]} Bb4 {[%emt 0:00:12]} 43. Rdc1 {[%emt 0:00:05]} Rd2 {[%emt 0:00:08]} 44. b3 {[%emt 0:00:06]} Rf6 {[%emt 0:00:05]} 45. Rc8+ {[%emt 0:00:13]} Bf8 {[%emt 0:00:02]} 46. Rf1 {[%emt 0:00:07]} Kg7 {[%emt 0:00:07]} 47. Ra8 {[%emt 0:00:04]} Bb4 {[%emt 0:00:09]} 48. Ra7+ {[%emt 0:00:12]} Rf7 {[%emt 0:00:07]} 49. Ra6 {[%emt 0:00:10]} Rb2 {[%emt 0:00:07]} 50. g4 {[%emt 0:00:17]} Rxb3 {[%emt 0:00:06]} 51. Rc1 {[%emt 0:00:02]} Rb2 {[%emt 0:00:11]} 52. Rcc6 {[%emt 0:00:01]} Rbxf2+ {[%emt 0:00:11]} 53. Kg1 {[%emt 0:00:01]} R2f6 {[%emt 0:00:12]} 0-1

[Event "European Women Rapid-ch 2023"]
[Site "Monaco"]
[Date "2024.01.13"]
[Round "5.11"]
[White "Charkhalashvili, Inga"]
[Black "Daulyte-Cornette, Deimante"]
[Result "1-0"]
[ECO "E16"]
[WhiteElo "2239"]
[BlackElo "2372"]
[Annotator "ChessBase"]
[PlyCount "63"]
[EventDate "2023.12.19"]
[EventType "swiss"]
[EventCountry "MNC"]
[SourceTitle "playchess.com"]
[Source "ChessBase"]
[SourceQuality "1"]
[TimeControl "900+10"]

1. d4 {[%emt 0:00:02]} Nf6 {[%emt 0:00:02]} 2. c4 {[%emt 0:00:05]} e6 {[%emt 0:00:03]} 3. Nf3 {[%emt 0:00:05]} b6 {[%emt 0:00:06]} 4. g3 {[%emt 0:00:03]} Bb4+ {[%emt 0:00:08]} 5. Bd2 {[%emt 0:00:02]} Bxd2+ {[%emt 0:00:05]} 6. Nbxd2 {[%emt 0:00:02]} Bb7 {[%emt 0:00:06]} 7. Bg2 {[%emt 0:00:05]} c5 {[%emt 0:00:21]} 8. O-O {[%emt 0:02:00]} O-O {[%emt 0:01:43]} 9. Rc1 {[%emt 0:03:27]} d6 {[%emt 0:01:50]} 10. a3 {[%emt 0:00:34]} Nbd7 {[%emt 0:00:49]} 11. Re1 {[%emt 0:00:47]} Rc8 {[%emt 0:01:16]} 12. b4 {[%emt 0:00:42]} cxd4 {[%emt 0:00:15]} 13. Nxd4 {[%emt 0:00:02]} Bxg2 {[%emt 0:00:07]} 14. Kxg2 {[%emt 0:00:02]} d5 {[%emt 0:00:21]} 15. cxd5 {[%emt 0:00:42]} Rxc1 {[%emt 0:00:25]} 16. Qxc1 {[%emt 0:00:02]} Nxd5 {[%emt 0:00:04]} 17. e4 {[%emt 0:01:51]} N5f6 {[%emt 0:00:26]} 18. Nc6 {[%emt 0:00:14]} Qa8 {[%emt 0:00:12]} 19. b5 {[%emt 0:01:26]} Nc5 {[%emt 0:00:15]} 20. Qc4 {[%emt 0:00:12]} a6 {[%emt 0:00:44]} 21. a4 {[%emt 0:00:22]} axb5 {[%emt 0:00:14]} 22. axb5 {[%emt 0:00:00]} Qa3 {[%emt 0:00:11]} 23. Qc2 {[%emt 0:02:27]} Ncd7 {[%emt 0:02:27]} 24. Re3 {[%emt 0:00:12]} Qa1 {[%emt 0:00:58]} 25. Nc4 {[%emt 0:00:48]} Ra8 {[%emt 0:00:41]} 26. Re2 {[%emt 0:00:15]} h6 {[%emt 0:00:51]} 27. Nd6 {[%emt 0:00:59]} Qa3 {[%emt 0:00:44]} 28. Rd2 {[%emt 0:00:25]} Kf8 {[%emt 0:00:26]} 29. e5 {[%emt 0:00:23]} Ng8 {[%emt 0:01:53]} 30. Nc4 {[%emt 0:00:44]} Qc5 {[%emt 0:00:08]} 31. Rxd7 {[%emt 0:00:09]} Qxb5 {[%emt 0:00:09]} 32. Rxf7+ {[%emt 0:00:03]} 1-0

[Event "European Women Rapid-ch 2023"]
[Site "Monaco"]
[Date "2024.01.13"]
[Round "5.12"]
[White "Zvereva, Marija"]
[Black "Hrebenshchykova, Yelyzaveta"]
[Result "0-1"]
[ECO "A07"]
[WhiteElo "2049"]
[BlackElo "2275"]
[Annotator "ChessBase"]
[PlyCount "106"]
[EventDate "2023.12.19"]
[EventType "swiss"]
[EventCountry "MNC"]
[SourceTitle "playchess.com"]
[Source "ChessBase"]
[SourceQuality "1"]
[TimeControl "900+10"]

1. Nf3 {[%emt 0:00:05]} Nf6 {[%emt 0:00:02]} 2. g3 {[%emt 0:00:20]} g6 {[%emt 0:01:07]} 3. Bg2 {[%emt 0:00:21]} Bg7 {[%emt 0:00:01]} 4. d3 {[%emt 0:01:41]} d5 {[%emt 0:00:38]} 5. c3 {[%emt 0:00:38]} O-O {[%emt 0:00:37]} 6. Nbd2 {[%emt 0:01:22]} c5 {[%emt 0:01:13]} 7. e4 {[%emt 0:00:18]} Nc6 {[%emt 0:00:47]} 8. e5 {[%emt 0:01:08]} Nd7 {[%emt 0:01:17]} 9. d4 {[%emt 0:00:38]} e6 {[%emt 0:00:28]} 10. Nb3 {[%emt 0:01:21]} b6 {[%emt 0:01:24]} 11. Bg5 {[%emt 0:00:32]} Qc7 {[%emt 0:00:36]} 12. Qd2 {[%emt 0:00:59]} a5 {[%emt 0:01:32]} 13. Bh6 {[%emt 0:00:29]} a4 {[%emt 0:00:30]} 14. Bxg7 {[%emt 0:00:34]} Kxg7 {[%emt 0:00:02]} 15. Nc1 {[%emt 0:00:02]} f6 {[%emt 0:00:55]} 16. exf6+ {[%emt 0:00:27]} Nxf6 {[%emt 0:00:01]} 17. O-O {[%emt 0:00:48]} Ne4 {[%emt 0:02:59]} 18. Qe3 {[%emt 0:00:12]} a3 {[%emt 0:00:28]} 19. b3 {[%emt 0:00:55]} Ne7 {[%emt 0:00:01]} 20. c4 {[%emt 0:02:14]} Nf5 {[%emt 0:00:20]} 21. Qe1 {[%emt 0:00:51]} Bb7 {[%emt 0:00:48]} 22. dxc5 {[%emt 0:00:13]} bxc5 {[%emt 0:00:07]} 23. Nd3 {[%emt 0:00:12]} Rfe8 {[%emt 0:00:37]} 24. Nfe5 {[%emt 0:00:03]} Nd4 {[%emt 0:00:19]} 25. Rc1 {[%emt 0:00:04]} Qa5 {[%emt 0:01:06]} 26. Qxa5 {[%emt 0:00:34]} Rxa5 {[%emt 0:00:01]} 27. Rfe1 {[%emt 0:00:08]} Rc8 {[%emt 0:00:23]} 28. f3 {[%emt 0:00:21]} Nd2 {[%emt 0:01:04]} 29. Rcd1 {[%emt 0:00:20]} dxc4 {[%emt 0:00:15]} 30. bxc4 {[%emt 0:00:02]} N2xf3+ {[%emt 0:00:03]} 31. Nxf3 {[%emt 0:00:09]} Nxf3+ {[%emt 0:00:04]} 32. Bxf3 {[%emt 0:00:11]} Bxf3 {[%emt 0:00:01]} 33. Rb1 {[%emt 0:00:04]} Ra4 {[%emt 0:00:33]} 34. Ne5 {[%emt 0:00:13]} Ba8 {[%emt 0:00:12]} 35. Rb6 {[%emt 0:00:09]} Re8 {[%emt 0:00:02]} 36. Rd1 {[%emt 0:00:11]} Rb4 {[%emt 0:00:08]} 37. Rb1 {[%emt 0:01:14]} Rxb1+ {[%emt 0:00:09]} 38. Rxb1 {[%emt 0:00:01]} Rd8 {[%emt 0:00:12]} 39. g4 {[%emt 0:00:49]} Rd2 {[%emt 0:00:18]} 40. h4 {[%emt 0:00:04]} Kf6 {[%emt 0:00:09]} 41. Re1 {[%emt 0:00:15]} Rg2+ {[%emt 0:00:01]} 42. Kf1 {[%emt 0:00:03]} Rxa2 {[%emt 0:00:02]} 43. Nd7+ {[%emt 0:00:02]} Ke7 {[%emt 0:00:04]} 44. Nxc5 {[%emt 0:00:02]} Kd6 {[%emt 0:00:32]} 45. Nb3 {[%emt 0:00:03]} Rb2 {[%emt 0:00:04]} 46. c5+ {[%emt 0:00:08]} Kd5 {[%emt 0:00:12]} 47. Na1 {[%emt 0:00:50]} a2 {[%emt 0:00:06]} 48. Rd1+ {[%emt 0:00:34]} Kxc5 {[%emt 0:00:03]} 49. Rc1+ {[%emt 0:00:02]} Kd6 {[%emt 0:00:06]} 50. Rd1+ {[%emt 0:00:08]} Bd5 {[%emt 0:00:01]} 51. Ke1 {[%emt 0:00:08]} Ke5 {[%emt 0:00:05]} 52. Rd2 {[%emt 0:00:09]} Rb1+ {[%emt 0:00:04]} 53. Rd1 {[%emt 0:00:01]} Bf3 {[%emt 0:00:03]} 0-1

[Event "European Women Rapid-ch 2023"]
[Site "Monaco"]
[Date "2024.01.13"]
[Round "5.13"]
[White "Hryshchenko, Kamila"]
[Black "Schulze, Lara"]
[Result "1-0"]
[ECO "C77"]
[WhiteElo "2192"]
[BlackElo "2285"]
[Annotator "TA"]
[PlyCount "75"]
[EventDate "2023.12.19"]
[EventType "swiss"]
[EventCountry "MNC"]
[SourceTitle "playchess.com"]
[Source "ChessBase"]
[SourceQuality "1"]
[TimeControl "900+10"]

{[%evp 16,75,19,17,22,7,25,0,10,0,66,0,0,-10,0,0,0,3,2,-14,0,-20,12,-16,28,16,28,39,51,52,50,47,140,127,151,150,192,187,224,190,228,220,218,147,137,77,77,85,128,106,183,168,248,241,673,674,724,720,716,707,929,923]} 1. e4 {[%emt 0:00:02]} e5 {[%emt 0:00:01]} 2. Nf3 {[%emt 0:00:02]} Nc6 {[%emt 0:00:01]} 3. Bb5 {[%emt 0:00:03]} a6 {[%emt 0:00:01]} 4. Ba4 {[%emt 0:00:01]} Nf6 {[%emt 0:00:03]} 5. O-O {[%emt 0:00:04]} d6 {[%emt 0:00:01]} 6. d3 {[%emt 0:01:01]} g6 {[%emt 0:00:04]} 7. c3 {[%emt 0:00:14]} Bg7 {[%emt 0:00:03]} 8. Nbd2 {[%emt 0:00:10][%cal Bb1d2,Bd2f1,Bf1g3][%mdl 32]} O-O {[%emt 0:00:10]} 9. Re1 {[%emt 0:00:11]} h6 {[%emt 0:00:25]} 10. Nf1 {[%emt 0:00:14]} b5 {[%emt 0:00:32]} 11. Bb3 {[%emt 0:00:15]} d5 {[%emt 0:00:28] The position is equal.} 12. Ng3 {[%emt 0:01:42]} Re8 {[%emt 0:03:54]} (12... dxe4 $11 13. dxe4 Qxd1 14. Rxd1 Re8) 13. a4 {[%emt 0:01:44]} (13. exd5 $14 Nxd5 14. d4) 13... Be6 $11 {[%emt 0:02:12]} 14. Be3 {[%emt 0:02:15]} dxe4 {[%emt 0:01:31]} (14... b4 {looks sharper.} 15. cxb4 Nxb4 16. Nxe5 dxe4 17. dxe4 Nxe4 18. Bxe6 Rxe6 19. Nxe4 Rxe5 20. Bd4 Rd5) 15. dxe4 {[%emt 0:00:48]} Qxd1 {[%emt 0:00:19]} 16. Bxd1 {[%emt 0:00:02]} b4 {[%emt 0:02:00]} 17. a5 {[%emt 0:00:27]} Red8 {[%emt 0:02:06]} 18. Be2 {[%emt 0:00:59]} Bf8 {[%emt 0:00:36]} 19. Rec1 {[%emt 0:00:55]} b3 {[%emt 0:01:07]} 20. h3 {[%emt 0:01:00]} Nd7 {[%emt 0:00:10]} 21. Ra4 {[%emt 0:01:09]} Nc5 {[%emt 0:00:24]} 22. Bxc5 {[%emt 0:00:03]} Bxc5 {[%emt 0:00:02]} 23. Bc4 {[%emt 0:00:06]} Rab8 {[%emt 0:00:51]} (23... Rd6 $14) 24. Bxa6 $16 {[%emt 0:00:48]} Bd7 {[%emt 0:00:53]} 25. Bc4 {[%emt 0:00:41]} Be8 {[%emt 0:00:26]} 26. a6 {[%emt 0:00:14]} Ra8 {[%emt 0:00:08]} 27. Bd5 {[%emt 0:00:10]} ({Not} 27. Bxb3 Rab8 28. Bc4 (28. Rc4 $2 Na5 $19) 28... Rxb2 $14) 27... Bd6 {[%emt 0:00:26]} 28. Rca1 $1 {[%emt 0:00:32][%cal Oa6a7] Black must now prevent a7!} ({Don't take} 28. Bxb3 $6 Nb8 $16) 28... Ra7 {[%emt 0:00:05]} 29. Nf1 {[%emt 0:02:46]} Ne7 {[%emt 0:00:18] [#]} 30. Bb7 $1 {[%emt 0:00:56]} Bxa4 {[%emt 0:00:05]} 31. Rxa4 {[%emt 0:00:01]} Rb8 {[%emt 0:00:09]} 32. Ra5 {[%emt 0:00:30]} c6 {[%emt 0:00:11]} (32... f6 $16 33. N1d2 Kf8) 33. Nxe5 $18 {[%emt 0:00:19]} Rbxb7 {[%emt 0:00:07]} (33... Bxe5 $142 34. Rxe5 Raxb7 35. axb7 Rxb7) 34. axb7 {[%emt 0:00:06]} Rxa5 {[%emt 0:00:13]} (34... Rxb7 35. Nc4 Bb8) 35. Nc4 $1 {[%emt 0:00:01][%csl LRa5,LRd6][%cal Oc4d6] White is clearly winning.} Rb5 {[%emt 0:00:32]} 36. Nxd6 {[%emt 0:00:02]} Rb6 37. Nd2 {[%emt 0:00:07]} c5 {[%emt 0:00:30]} 38. N2c4 {[%emt 0:00:02] Weighted Error Value: White=0.15 (very precise) /Black=0.46.  Mistake:       	White=2     	Black=5      Inaccurate:     	White=2     	Black=3      OK:         	White=3     	Black=6      Best:        	White=3     	---        Strong:       	White=1     	---} 1-0

[Event "European Women Rapid-ch 2023"]
[Site "Monaco"]
[Date "2024.01.13"]
[Round "5.14"]
[White "Papp, Petra"]
[Black "De Seroux, Camille"]
[Result "1-0"]
[ECO "B00"]
[WhiteElo "2267"]
[BlackElo "2075"]
[Annotator "RC"]
[PlyCount "153"]
[EventDate "2023.12.19"]
[EventType "swiss"]
[EventCountry "MNC"]
[SourceTitle "playchess.com"]
[Source "ChessBase"]
[SourceQuality "1"]
[TimeControl "900+10"]

1. e4 {[%emt 0:00:03]} Nc6 {[%emt 0:00:02]} 2. d4 {[%emt 0:00:26]} d5 {[%emt 0:00:07]} 3. Nc3 {[%emt 0:00:23]} dxe4 {[%emt 0:00:58]} 4. d5 {[%emt 0:00:04]} Nb8 {[%emt 0:02:24]} 5. Nxe4 {[%emt 0:01:52]} e6 {[%emt 0:00:29]} 6. Bb5+ {[%emt 0:01:55]} c6 {[%emt 0:02:28]} 7. dxc6 {[%emt 0:00:09]} Qxd1+ {[%emt 0:01:08]} 8. Kxd1 {[%emt 0:00:02]} Nxc6 {[%emt 0:00:19]} 9. Bf4 {[%emt 0:03:27]} Bd7 {[%emt 0:01:20]} 10. Nf3 {[%emt 0:00:03]} e5 {[%emt 0:02:44]} 11. Be3 {[%emt 0:00:43]} O-O-O {[%emt 0:00:20]} 12. Ke2 {[%emt 0:01:24]} a6 {[%emt 0:01:21]} 13. Bc4 {[%emt 0:00:20]} f6 {[%emt 0:00:38]} 14. Bb6 {[%emt 0:01:30]} Re8 {[%emt 0:00:27]} 15. Rhd1 {[%emt 0:00:29]} Nh6 {[%emt 0:00:13]} 16. c3 {[%emt 0:00:52]} Be6 {[%emt 0:00:53]} 17. Bb3 {[%emt 0:00:38]} Nf7 {[%emt 0:00:16]} 18. Rd2 {[%emt 0:00:29]} h6 {[%emt 0:00:12]} 19. Rad1 {[%emt 0:00:21]} f5 {[%emt 0:00:25]} 20. Ng3 {[%emt 0:00:43]} e4 {[%emt 0:00:32]} 21. Nd4 {[%emt 0:00:19]} Bxb3 {[%emt 0:00:25]} 22. axb3 {[%emt 0:00:11]} g6 {[%emt 0:00:23]} 23. Nxc6 {[%emt 0:00:15]} bxc6 {[%emt 0:00:02]} 24. Rd7 {[%emt 0:00:10]} Ne5 {[%emt 0:00:05]} 25. Ra7 {[%emt 0:00:39]} Bg7 {[%emt 0:00:29]} 26. Rxg7 {[%emt 0:00:03]} Nd3 {[%emt 0:00:05]} 27. Kf1 {[%emt 0:00:59]} Re6 {[%emt 0:00:05]} 28. Ne2 {[%emt 0:00:37]} c5 {[%emt 0:00:03]} 29. Ba5 {[%emt 0:00:06]} f4 {[%emt 0:00:21]} 30. Nc1 {[%emt 0:00:12]} Rhe8 {[%emt 0:00:26]} 31. b4 {[%emt 0:00:20]} Nxb2 {[%emt 0:00:25]} 32. Rdd7 {[%emt 0:00:08]} e3 {[%emt 0:00:07]} 33. Rc7+ {[%emt 0:00:14]} Kb8 {[%emt 0:00:03]} 34. Rb7+ {[%emt 0:00:02]} Ka8 {[%emt 0:00:03]} 35. Ra7+ {[%emt 0:00:01]} Kb8 {[%emt 0:00:01]} 36. Rgb7+ {[%emt 0:00:01]} Kc8 {[%emt 0:00:02]} 37. fxe3 {[%emt 0:00:26]} Rxe3 {[%emt 0:00:07]} 38. Rf7 {[%emt 0:00:17]} Re1+ {[%emt 0:00:45]} 39. Kf2 {[%emt 0:00:01]} Kb8 {[%emt 0:00:07]} 40. Rab7+ {[%emt 0:00:18]} Ka8 {[%emt 0:00:02]} 41. Bb6 {[%emt 0:00:12]} Nd1+ {[%emt 0:00:15]} 42. Kf3 {[%emt 0:00:06]} Rf1+ {[%emt 0:00:16]} 43. Kg4 {[%emt 0:00:01]} Ne3+ {[%emt 0:00:05]} 44. Kh3 {[%emt 0:00:06]} Rxc1 {[%emt 0:00:05]} 45. Ra7+ {[%emt 0:00:18]} Kb8 {[%emt 0:00:01]} 46. Bxc5 {[%emt 0:00:27]} Nf5 {[%emt 0:00:08]} 47. Rfb7+ {[%emt 0:00:16]} Kc8 {[%emt 0:00:01]} 48. Rc7+ {[%emt 0:00:16]} Kb8 {[%emt 0:00:06]} 49. Rcb7+ {[%emt 0:00:09]} Kc8 {[%emt 0:00:01]} 50. Rf7 {[%emt 0:00:12]} Kb8 {[%emt 0:00:36]} 51. Rxa6 {[%emt 0:00:14]} h5 {[%emt 0:00:11]} 52. Rb6+ {[%emt 0:00:03]} Kc8 {[%emt 0:00:09]} 53. Rc6+ {[%emt 0:00:15]} Kb8 {[%emt 0:00:08]} 54. Rb6+ {[%emt 0:00:01]} Kc8 {[%emt 0:00:06]} 55. Ra6 {[%emt 0:00:17]} Rxc3+ {[%emt 0:00:15]} 56. g3 {[%emt 0:00:01]} Kb8 {[%emt 0:00:15]} 57. Rxg6 {[%emt 0:00:09]} fxg3 {[%emt 0:00:09]} 58. Rxf5 {[%emt 0:00:21]} gxh2+ {[%emt 0:00:18]} 59. Kxh2 {[%emt 0:00:04]} Re2+ {[%emt 0:00:16]} 60. Rg2 {[%emt 0:00:04]} Rxg2+ {[%emt 0:00:08]} 61. Kxg2 {[%emt 0:00:01]} h4 {[%emt 0:00:07]} 62. Rh5 {[%emt 0:00:15]} Rc4 {[%emt 0:00:05]} 63. Kh3 {[%emt 0:00:06]} Kb7 {[%emt 0:00:02]} 64. Rxh4 {[%emt 0:00:02]} Rc3+ {[%emt 0:00:01]} 65. Kg4 {[%emt 0:00:04]} Kc6 {[%emt 0:00:02]} 66. Kf5 {[%emt 0:00:05]} Kb5 {[%emt 0:00:02]} 67. Ke5 {[%emt 0:00:05]} Rd3 {[%emt 0:00:02]} 68. Rh8 {[%emt 0:00:05]} Rd1 {[%emt 0:00:04]} 69. Rb8+ {[%emt 0:00:03]} Kc4 {[%emt 0:00:03]} 70. Ke6 {[%emt 0:00:12]} Rd3 {[%emt 0:00:02]} 71. Bd6 {[%emt 0:00:09]} Re3+ {[%emt 0:00:13]} 72. Kd7 {[%emt 0:00:05]} Kd5 {[%emt 0:00:04]} 73. Rc8 {[%emt 0:00:10]} Rh3 {[%emt 0:00:09]} 74. Rc5+ {[%emt 0:00:01]} Kd4 {[%emt 0:00:02]} 75. Kc6 {[%emt 0:00:11]} Rh7 {[%emt 0:00:04]} 76. b5 {[%emt 0:00:14]} Rh6 {[%emt 0:00:08]} 77. b6 {[%emt 0:00:04]} 1-0

[Event "European Women Rapid-ch 2023"]
[Site "Monaco"]
[Date "2024.01.13"]
[Round "5.15"]
[White "Rodriguez Redondo, Adhara"]
[Black "Savina, Anastasia"]
[Result "1/2-1/2"]
[ECO "B32"]
[WhiteElo "2130"]
[BlackElo "2340"]
[Annotator "ChessBase"]
[PlyCount "96"]
[EventDate "2023.12.19"]
[EventType "swiss"]
[EventCountry "MNC"]
[SourceTitle "playchess.com"]
[Source "ChessBase"]
[SourceQuality "1"]
[TimeControl "900+10"]

1. e4 {[%emt 0:00:01]} c5 {[%emt 0:00:02]} 2. Nf3 {[%emt 0:00:01]} Nc6 {[%emt 0:00:03]} 3. d4 {[%emt 0:00:02]} cxd4 {[%emt 0:00:02]} 4. Nxd4 {[%emt 0:00:01]} e5 {[%emt 0:00:01]} 5. Nb5 {[%emt 0:00:04]} d6 {[%emt 0:00:02]} 6. c4 {[%emt 0:00:04]} Be7 {[%emt 0:00:18]} 7. N5c3 {[%emt 0:00:37]} Nf6 {[%emt 0:00:30]} 8. Bd3 {[%emt 0:00:41]} Bg4 {[%emt 0:00:20]} 9. f3 {[%emt 0:00:29]} Be6 {[%emt 0:00:02]} 10. Be3 {[%emt 0:00:04]} Nd7 {[%emt 0:00:33]} 11. O-O {[%emt 0:00:22]} Bg5 {[%emt 0:00:23]} 12. Bf2 {[%emt 0:00:10]} Nc5 {[%emt 0:01:12]} 13. Nd5 {[%emt 0:00:47]} Nxd3 {[%emt 0:01:45]} 14. Qxd3 {[%emt 0:00:02]} O-O {[%emt 0:00:03]} 15. Nbc3 {[%emt 0:01:03]} Rc8 {[%emt 0:00:19]} 16. b3 {[%emt 0:00:15]} f5 {[%emt 0:00:32]} 17. Rad1 {[%emt 0:01:11]} Bh4 {[%emt 0:01:14]} 18. Bxh4 {[%emt 0:05:38]} Qxh4 {[%emt 0:00:02]} 19. Nb5 {[%emt 0:00:01]} Rcd8 {[%emt 0:02:28]} 20. Ndc7 {[%emt 0:01:38]} fxe4 {[%emt 0:02:16]} 21. Qxe4 {[%emt 0:00:30]} Qe7 {[%emt 0:01:31]} 22. Nxe6 {[%emt 0:01:00]} Qxe6 {[%emt 0:00:02]} 23. Qd5 {[%emt 0:00:06]} Rf6 {[%emt 0:00:59]} 24. Qxe6+ {[%emt 0:03:50]} Rxe6 {[%emt 0:00:01]} 25. Rd2 {[%emt 0:00:13]} a6 {[%emt 0:01:20]} 26. Nc3 {[%emt 0:00:12]} Nd4 {[%emt 0:00:10]} 27. Ne2 {[%emt 0:00:24]} Nxe2+ {[%emt 0:00:21]} 28. Rxe2 {[%emt 0:00:01]} Kf7 {[%emt 0:00:19]} 29. Rd1 {[%emt 0:00:07]} Ke7 {[%emt 0:00:04]} 30. a4 {[%emt 0:00:10]} Rc8 {[%emt 0:00:23]} 31. Rd5 {[%emt 0:00:04]} Rc5 {[%emt 0:00:31]} 32. Red2 {[%emt 0:00:01]} Rxd5 {[%emt 0:00:13]} 33. Rxd5 {[%emt 0:00:04]} e4 {[%emt 0:00:05]} 34. fxe4 {[%emt 0:00:31]} Rxe4 {[%emt 0:00:01]} 35. Kf2 {[%emt 0:00:01]} h6 {[%emt 0:00:23]} 36. Kf3 {[%emt 0:00:23]} Re1 {[%emt 0:00:02]} 37. Kf2 {[%emt 0:00:15]} Rb1 {[%emt 0:00:10]} 38. Rd3 {[%emt 0:00:01]} Rb2+ {[%emt 0:01:08]} 39. Kf3 {[%emt 0:00:02]} Ke6 {[%emt 0:00:02]} 40. h3 {[%emt 0:00:07]} Ke5 {[%emt 0:00:10]} 41. Rd5+ {[%emt 0:00:04]} Ke6 {[%emt 0:00:03]} 42. Rd3 {[%emt 0:00:01]} h5 {[%emt 0:00:33]} 43. h4 {[%emt 0:00:09]} g6 {[%emt 0:00:13]} 44. g3 {[%emt 0:00:02]} Ke5 {[%emt 0:00:26]} 45. Rd5+ {[%emt 0:00:01]} Ke6 {[%emt 0:00:02]} 46. Rd3 {[%emt 0:00:02]} Ke5 {[%emt 0:00:14]} 47. Rd5+ {[%emt 0:00:09]} Ke6 {[%emt 0:00:02]} 48. Rd3 {[%emt 0:00:01]} Ke5 {[%emt 0:00:11]} 1/2-1/2